[Event "Grand Prix Romania 1st Stage 2024"]
[Site "Bucuresti"]
[Date "2024.03.23"]
[Round "1.25"]
[White "Castellanos Rodriguez, Renier"]
[Black "Koteles, Gabriel-Dorian"]
[Result "1-0"]
[ECO "B50"]
[WhiteElo "2469"]
[BlackElo "1640"]
[Annotator "TA"]
[PlyCount "73"]
[EventDate "2024.03.20"]
[EventCountry "ROU"]
[SourceTitle "playchess.com"]
[Source "ChessBase"]
[SourceQuality "1"]
[TimeControl "900+5"]

{[%evp 9,73,15,13,11,27,23,19,27,30,32,25,19,18,4,62,41,31,16,26,0,0,0,0,0,0,0,0,-10,31,24,26,26,25,0,107,106,133,119,220,236,235,224,418,413,411,418,398,424,431,424,431,414,431,421,1329,590,577,566,613,558,622,558,670,670,666,659]} 1. e4 {[%emt 0:00:03]} c5 {[%emt 0:00:04]} 2. Nf3 {[%emt 0:00:02]} d6 {[%emt 0:00:02]} 3. c3 {[%emt 0:00:09]} Nf6 {[%emt 0:00:03]} 4. h3 {[%emt 0:00:01]} e6 {[%emt 0:00:07]} 5. Bd3 {[%emt 0:00:05]} Be7 {[%emt 0:00:24]} 6. Bc2 {[%emt 0:00:04]} Nbd7 {[%emt 0:00:49]} 7. d4 {[%emt 0:00:08]} cxd4 {[%emt 0:00:02]} 8. cxd4 {[%emt 0:00:02] The position is equal.} b5 {[%emt 0:00:36]} 9. O-O {[%emt 0:00:24]} Bb7 {[%emt 0:00:06]} 10. Re1 {[%emt 0:00:07]} O-O {[%emt 0:00:09]} 11. Nbd2 {[%emt 0:00:08]} e5 {[%emt 0:00:33]} ({Better is} 11... b4 $11) 12. d5 {[%emt 0:00:10]} a5 {[%emt 0:00:21]} 13. Bd3 {[%emt 0:00:40]} Ba6 {[%emt 0:00:30]} 14. a4 {[%emt 0:00:10]} Qb6 {[%emt 0:00:41]} 15. axb5 {[%emt 0:00:36]} Bxb5 {[%emt 0:00:07]} 16. Nc4 {[%emt 0:00:44]} Bxc4 {[%emt 0:01:34]} 17. Bxc4 {[%emt 0:00:02]} Nc5 {[%emt 0:00:15]} 18. Nd2 {[%emt 0:00:28]} Qb4 {[%emt 0:01:41][%cal Of6e4]} 19. b3 {[%emt 0:00:40]} Nfd7 {[%emt 0:01:17]} 20. Ba3 {[%emt 0:00:25]} Qb6 {[%emt 0:00:04]} 21. Rb1 {[%emt 0:00:14]} Qc7 {[%emt 0:00:26]} (21... f5 $11) 22. Bb5 $16 {[%emt 0:00:19] Black is now going downhill.} Rab8 {[%emt 0:00:35]} 23. Bxd7 {[%emt 0:00:32]} Qxd7 {[%emt 0:00:22]} (23... Nxd7 $16 {is a better defense.} 24. Rc1 Qd8) 24. Bxc5 $18 {[%emt 0:00:04]} dxc5 {[%emt 0:00:02]} 25. Nc4 {[%emt 0:00:03][%csl LRa5,LRe5]} Qc7 $2 {[%emt 0:01:04] [#]} (25... Bd6 {might work better.} 26. Ra1 (26. Nxa5 f5 $18) 26... f5 27. Rxa5 f4) 26. d6 {[%emt 0:00:03] Black is weak on the light squares} Bxd6 {[%emt 0:00:10]} 27. Qxd6 {[%emt 0:00:02]} ({Weaker is} 27. Nxd6 Rfd8 $15) 27... Qxd6 {[%emt 0:00:26]} 28. Nxd6 {[%emt 0:00:02]} Rfd8 {[%emt 0:00:27]} 29. Nc4 {[%emt 0:00:11][%csl LRa5,LRe5][%cal Bd6c4,Bc4a5,Ba5c4,Bc4e5,Be5d7][%mdl 32]} Rd3 {[%emt 0:00:58]} 30. Nxa5 {[%emt 0:00:10]} ({Don't take} 30. Nxe5 Rdxb3 31. Rxb3 Rxb3) 30... Rb5 {[%emt 0:00:05]} 31. Ra1 {[%emt 0:00:12] White is clearly winning.} Rd6 {[%emt 0:00:56]} (31... f6 $142 32. Re3 Rxe3) 32. Nc4 {[%emt 0:00:17]} Rd8 {[%emt 0:00:13] Prevents Ra8.} 33. Re3 {[%emt 0:00:07]} h6 {[%emt 0:00:08]} 34. Nxe5 {[%emt 0:00:04]} Rdb8 {[%emt 0:00:46]} 35. Rc1 {[%emt 0:00:17]} f6 {[%emt 0:00:33]} 36. Nd7 {[%emt 0:00:18][%csl LRb8,LRc5]} Rc8 {[%emt 0:00:08]} 37. Rec3 {[%emt 0:00:03] Weighted Error Value: White=0.28 (precise) /Black=0.33.  Mistake:       	---       	Black=5      Inaccurate:     	White=2     	Black=1      OK:         	White=7     	Black=11     Best:        	White=4     	---} 1-0

[Event "Grand Prix Romania 1st Stage 2024"]
[Site "Bucuresti"]
[Date "2024.03.23"]
[Round "1.26"]
[White "Beldiman, Tudor"]
[Black "Rozen, Eytan"]
[Result "0-1"]
[ECO "D03"]
[WhiteElo "1679"]
[BlackElo "2487"]
[Annotator "TA"]
[PlyCount "54"]
[EventDate "2024.03.20"]
[EventCountry "ROU"]
[SourceTitle "playchess.com"]
[Source "ChessBase"]
[SourceQuality "1"]
[TimeControl "900+5"]

{[%evp 12,54,6,3,33,24,60,43,62,50,63,60,75,43,46,42,50,5,9,10,10,0,24,8,23,0,0,6,7,-4,0,-16,-22,-20,-11,-16,-13,-17,-6,-12,-15,-12,-13,-29997,-29998]} 1. d4 {[%emt 0:00:02]} Nf6 {[%emt 0:00:16]} 2. Nf3 {[%emt 0:00:11]} e6 {[%emt 0:00:05]} 3. Bg5 {[%emt 0:00:50]} c5 {[%emt 0:00:07]} 4. e3 {[%emt 0:01:20]} Nc6 {[%emt 0:00:31]} 5. c3 {[%emt 0:00:33]} d5 {[%emt 0:00:53]} 6. Nbd2 {[%emt 0:00:38]} h6 {[%emt 0:00:02]} 7. Bh4 {[%emt 0:01:25]} Bd7 {[%emt 0:00:56]} 8. Bd3 {[%emt 0:01:02]} Bd6 {[%emt 0:01:58]} 9. O-O {[%emt 0:01:21]} cxd4 {[%emt 0:00:28] White is slightly better.} 10. exd4 {[%emt 0:00:51]} a6 {[%emt 0:00:23]} 11. Re1 {[%emt 0:00:46]} Qc7 {[%emt 0:00:38]} 12. Bg3 {[%emt 0:00:19]} Bxg3 {[%emt 0:00:28]} 13. hxg3 {[%emt 0:00:12]} h5 {[%emt 0:00:59]} 14. c4 {[%emt 0:00:21]} Nb4 {[%emt 0:00:19]} 15. Bf1 {[%emt 0:00:29]} dxc4 {[%emt 0:00:07]} 16. Nxc4 {[%emt 0:00:25]} Bc6 {[%emt 0:00:22]} 17. Nfe5 {[%emt 0:00:47]} Rd8 {[%emt 0:00:30]} 18. a3 {[%emt 0:00:21]} Nbd5 {[%emt 0:00:03][%cal Bb4d5,Bd5e7,Be7f5,Bf5g3][%mdl 32]} 19. Rc1 {[%emt 0:00:08]} O-O {[%emt 0:00:30]} 20. Nxc6 {[%emt 0:01:42]} Qxc6 {[%emt 0:00:05]} 21. Ne5 {[%emt 0:00:57]} Qb6 {[%emt 0:00:06]} 22. Nc4 {[%emt 0:00:36]} Qa7 {[%emt 0:00:21]} 23. Be2 {[%emt 0:00:15]} Ne7 {[%emt 0:00:22]} 24. Bxh5 {[%emt 0:00:45]} Nf5 {[%emt 0:00:15]} 25. Bf3 {[%emt 0:00:26]} Rxd4 {[%emt 0:00:37]} 26. Qb3 {[%emt 0:00:08] [#]} Nxg3 $1 {[%emt 0:00:09] ( -> ...Rh4)} 27. Qxb7 $2 {[%emt 0:00:13][%mdl 8192] [#]} (27. Qb6 $11 Qxb6 28. Nxb6) (27. Bxb7 Nf5) 27... Rh4 $1 {[%emt 0:00:04] Weighted Error Value: White=0.41/Black=0.10 (very precise) .  Loses game:     	White=1     	---        Inaccurate:     	White=2     	Black=1      OK:         	White=6     	Black=7      Strong:       	---       	Black=1} 0-1

[Event "Grand Prix Romania 1st Stage 2024"]
[Site "Bucuresti"]
[Date "2024.03.23"]
[Round "1.27"]
[White "Istratescu, Andrei"]
[Black "Marius, Andra-Beatrice"]
[Result "1-0"]
[ECO "C05"]
[WhiteElo "2374"]
[BlackElo "1660"]
[Annotator "RC"]
[PlyCount "45"]
[EventDate "2024.03.20"]
[EventCountry "ROU"]
[SourceTitle "playchess.com"]
[Source "ChessBase"]
[SourceQuality "1"]
[TimeControl "900+5"]

1. e4 {[%emt 0:00:03]} e6 {[%emt 0:00:01]} 2. d4 {[%emt 0:00:02]} d5 {[%emt 0:00:01]} 3. Nd2 {[%emt 0:00:01]} Nf6 {[%emt 0:00:01]} 4. e5 {[%emt 0:00:02]} Nfd7 {[%emt 0:00:03]} 5. f4 {[%emt 0:00:03]} c5 {[%emt 0:00:01]} 6. c3 {[%emt 0:00:01]} Nc6 {[%emt 0:00:01]} 7. Ndf3 {[%emt 0:00:01]} a6 {[%emt 0:00:11]} 8. Be3 {[%emt 0:00:05]} b5 {[%emt 0:01:08]} 9. Bd3 {[%emt 0:00:13]} Qb6 {[%emt 0:00:08]} 10. Ne2 {[%emt 0:00:02]} b4 {[%emt 0:01:34]} 11. O-O {[%emt 0:00:07]} Be7 {[%emt 0:01:05]} 12. Kh1 {[%emt 0:01:07]} a5 {[%emt 0:00:14]} 13. c4 {[%emt 0:00:04]} cxd4 {[%emt 0:03:49]} 14. Nexd4 {[%emt 0:01:39]} Bc5 {[%emt 0:01:18]} 15. Be2 {[%emt 0:00:02]} Ba6 {[%emt 0:00:34]} 16. Rc1 {[%emt 0:00:22]} Rd8 {[%emt 0:01:26]} 17. cxd5 {[%emt 0:00:08]} Bxe2 {[%emt 0:00:17]} 18. Nxe2 {[%emt 0:00:01]} Bxe3 {[%emt 0:00:43]} 19. Rxc6 {[%emt 0:00:02]} Qb7 {[%emt 0:00:18]} 20. Qd3 {[%emt 0:00:32]} exd5 {[%emt 0:00:36]} 21. Rd6 {[%emt 0:00:21]} Bb6 {[%emt 0:00:53]} 22. e6 {[%emt 0:00:18]} Nc5 {[%emt 0:00:27]} 23. Qb5+ {[%emt 0:00:02]} 1-0

[Event "Grand Prix Romania 1st Stage 2024"]
[Site "Bucuresti"]
[Date "2024.03.23"]
[Round "1.28"]
[White "Matei-Catruna, Andrei"]
[Black "Tilicheev, Viacheslav"]
[Result "0-1"]
[ECO "E05"]
[WhiteElo "1688"]
[BlackElo "2485"]
[Annotator "TA"]
[PlyCount "66"]
[EventDate "2024.03.20"]
[EventCountry "ROU"]
[SourceTitle "playchess.com"]
[Source "ChessBase"]
[SourceQuality "1"]
[TimeControl "900+5"]

{[%evp 13,66,17,6,-59,-45,-60,-51,-103,-67,-97,-79,-123,-118,-127,-127,-187,-159,-233,-216,-239,-166,-171,-170,-359,-353,-354,-341,-426,-418,-533,-512,-807,-725,-935,-935,-850,-931,-928,-920,-863,-856,-29984,-29985,-29987,-29987,-29991,-29986,-29986,-29987,-29987,-29988,-29988,-29989,-29989,-29988]} 1. Nf3 {[%emt 0:00:03]} d5 {[%emt 0:00:01]} 2. d4 {[%emt 0:00:04]} Nf6 {[%emt 0:00:05]} 3. c4 {[%emt 0:00:17]} e6 {[%emt 0:00:03]} 4. g3 {[%emt 0:00:04]} Be7 {[%emt 0:00:22]} 5. Bg2 {[%emt 0:00:03]} O-O {[%emt 0:00:02]} 6. O-O {[%emt 0:00:06]} dxc4 {[%emt 0:00:03]} 7. Qc2 {[%emt 0:00:02]} b5 {[%emt 0:00:06]} 8. Ng5 {[%emt 0:01:14]} (8. a4 $11) 8... c6 $15 {[%emt 0:00:45]} 9. a4 {[%emt 0:00:27]} h6 {[%emt 0:00:19]} ({Of course not} 9... Qxd4 10. axb5 h6 11. Be3 $11 (11. Bxc6 Nxc6 12. Nf3 Qd7 $15)) 10. Nh3 {[%emt 0:02:17]} (10. Ne4 $15) 10... Nd5 {[%emt 0:00:22]} ({Don't take} 10... Qxd4 11. axb5 Bb7 12. Be3 $11) 11. axb5 {[%emt 0:01:13]} cxb5 {[%emt 0:00:06]} 12. Nf4 {[%emt 0:01:48]} Nc6 {[%emt 0:01:34]} 13. Nxd5 {[%emt 0:00:54]} exd5 {[%emt 0:00:05]} 14. e3 {[%emt 0:00:35]} (14. Nc3 $17) 14... Be6 {[%emt 0:00:20]} 15. Bd2 {[%emt 0:00:43]} (15. Nc3 $17) 15... a5 $19 {[%emt 0:01:15]} 16. b3 {[%emt 0:01:09]} Rc8 {[%emt 0:00:40]} 17. bxc4 {[%emt 0:00:06]} dxc4 {[%emt 0:00:15]} 18. Bxc6 $2 {[%emt 0:00:23] [#]} (18. Nc3 {was worth a try.}) 18... Rxc6 {[%emt 0:00:02]} 19. Bxa5 {[%emt 0:00:18]} Qd7 {[%emt 0:00:08]} 20. Nd2 {[%emt 0:00:36]} b4 {[%emt 0:00:29]} 21. Rfb1 {[%emt 0:00:30]} Ra8 {[%emt 0:00:19]} 22. Qc1 {[%emt 0:00:58] White is weak on the light squares} (22. Bxb4 $142 Rxa1 23. Rxa1 Bxb4 24. Nf3) 22... Rca6 {[%emt 0:00:39]} 23. Bxb4 {[%emt 0:01:50]} Rxa1 {[%emt 0:00:04]} 24. Rxa1 {[%emt 0:00:04]} Rxa1 {[%emt 0:00:02]} 25. Qxa1 {[%emt 0:00:02]} Bxb4 {[%emt 0:00:02]} 26. Qa8+ {[%emt 0:00:04]} Kh7 {[%emt 0:00:11]} 27. Qe4+ {[%emt 0:00:03]} Bf5 {[%emt 0:00:05] Black mates.} 28. Qe5 {[%emt 0:00:25]} Bxd2 {[%emt 0:00:04]} 29. e4 {[%emt 0:00:02]} f6 {[%emt 0:00:18]} 30. Qxf5+ {[%emt 0:00:19]} Qxf5 {[%emt 0:00:02]} 31. exf5 {[%emt 0:00:01]} c3 {[%emt 0:00:01]} 32. Kf1 {[%emt 0:00:01]} c2 {[%emt 0:00:02]} 33. Ke2 {[%emt 0:00:00]} c1=Q {[%emt 0:00:04] White got outplayed after the opening.   Weighted Error Value: White=0.68/Black=0.08 (flawless) .  Mistake:       	White=5     	---        Inaccurate:     	White=1     	Black=2      OK:         	White=5     	Black=6      Best:        	---       	Black=1} 0-1

[Event "Grand Prix Romania 1st Stage 2024"]
[Site "Bucuresti"]
[Date "2024.03.23"]
[Round "1.29"]
[White "Costachi, Mihnea"]
[Black "Stoica, Vlad V."]
[Result "1-0"]
[ECO "C30"]
[WhiteElo "2470"]
[BlackElo "1436"]
[Annotator "TA"]
[PlyCount "47"]
[EventDate "2024.03.20"]
[EventCountry "ROU"]
[SourceTitle "playchess.com"]
[Source "ChessBase"]
[SourceQuality "1"]
[TimeControl "900+5"]

{[%evp 12,46,7,0,44,43,66,68,56,65,48,76,95,97,281,284,384,375,485,484,873,851,839,833,875,823,1890,1887,1909,1874,29995,29996,29996,29997,29997,29998,29999]} 1. Nc3 {[%emt 0:00:04]} Nf6 {[%emt 0:00:02]} 2. e4 {[%emt 0:00:04]} e5 {[%emt 0:00:02]} 3. Bc4 {[%emt 0:00:02]} Bc5 {[%emt 0:00:03]} 4. d3 {[%emt 0:00:07]} d6 {[%emt 0:00:03]} 5. f4 {[%emt 0:00:10]} O-O {[%emt 0:00:07]} 6. Nf3 {[%emt 0:00:10]} Nc6 {[%emt 0:00:24]} 7. Na4 {[%emt 0:01:02]} Re8 {[%emt 0:00:50][%cal Od6d5,Bf8e8,Be8e5,Be5h5,Bh5h4][%mdl 32]} 8. Nxc5 {[%emt 0:00:15][%cal Of3g5] Ng5! would now be deadly.} dxc5 {[%emt 0:00:02]} 9. fxe5 {[%emt 0:01:54]} Nxe5 {[%emt 0:00:05] White is slightly better.} 10. Nxe5 {[%emt 0:00:02]} Rxe5 {[%emt 0:00:02]} 11. O-O {[%emt 0:00:06]} Bg4 {[%emt 0:00:38]} 12. Qe1 {[%emt 0:00:25] Qg3 is the strong threat.} h6 $2 {[%emt 0:02:03] [#]} (12... Be6 $16 {was necessary.}) 13. Qg3 $1 $18 {[%emt 0:00:26]} Qe7 {[%emt 0:03:41]} 14. Bf4 {[%emt 0:00:38][%cal Bc1f4,Bf4d2,Bd2c3,Bc3f6][%mdl 32]} Rh5 {[%emt 0:00:40]} 15. e5 {[%emt 0:00:05][%cal Be4e5,Be5e6][%mdl 32]} (15. Bxc7 Rg5 $16) 15... Nh7 {[%emt 0:00:42]} (15... Be6 $142 16. exf6 Qxf6) 16. Qxg4 {[%emt 0:00:05]} Rh4 {[%emt 0:00:17] [#]} 17. Bxf7+ $1 {[%emt 0:00:30]} Kh8 {[%emt 0:00:04]} (17... Qxf7 18. Qxh4) 18. Qg3 {[%emt 0:00:21]} g5 {[%emt 0:00:36]} 19. Bd2 {[%emt 0:00:09]} Nf8 {[%emt 0:01:27] [#]} 20. e6 $1 {[%emt 0:00:06] Threatening mate with Qe5+.} c4 {[%emt 0:01:06]} (20... Qd6 21. Rae1) 21. Qe5+ {[%emt 0:00:03] White mates.} Kh7 {[%emt 0:00:04]} 22. Qf5+ {[%emt 0:00:02]} Kh8 {[%emt 0:00:06]} 23. Bc3+ {[%emt 0:00:12]} Qf6 {[%emt 0:00:07]} 24. Bxf6# {[%emt 0:00:03] Black did not feel at home in the position after the opening.   Weighted Error Value: White=0.01 (flawless) /Black=1.11.  Loses game:     	---       	Black=1      Mistake:       	---       	Black=1      Inaccurate:     	---       	Black=1      OK:         	White=3     	Black=1      Best:        	White=2     	---        Strong:       	White=1     	---} 1-0

[Event "Grand Prix Romania 1st Stage 2024"]
[Site "Bucuresti"]
[Date "2024.03.23"]
[Round "1.30"]
[White "Butuza, Stefan Aurelian"]
[Black "Sofronie, Iulian"]
[Result "0-1"]
[ECO "C47"]
[WhiteElo "1712"]
[BlackElo "2395"]
[Annotator "TA"]
[PlyCount "108"]
[EventDate "2024.03.20"]
[EventCountry "ROU"]
[SourceTitle "playchess.com"]
[Source "ChessBase"]
[SourceQuality "1"]
[TimeControl "900+5"]

{[%evp 17,108,-4,1,0,0,0,0,-5,10,19,22,16,17,19,6,18,9,0,8,0,17,0,0,0,16,0,6,0,0,0,0,8,25,0,36,14,64,57,64,-33,-25,-113,-106,-108,-108,-103,-85,-107,-99,-87,-62,-68,-70,-75,-73,-50,0,0,0,0,0,-22,-15,-41,-16,-15,-15,-26,-22,-22,-12,-12,-12,-12,-8,-12,-12,-14,-14,-21,-19,-21,-12,-29,-12,-29981,-29982,-29982,-29983,-29983,-29984,-29983,-29982]} 1. e4 {[%emt 0:00:02]} e5 {[%emt 0:00:02]} 2. Nf3 {[%emt 0:00:01]} Nc6 {[%emt 0:00:01]} 3. Nc3 {[%emt 0:00:01]} Nf6 {[%emt 0:00:03]} 4. d4 {[%emt 0:00:01]} exd4 {[%emt 0:00:01]} 5. Nxd4 {[%emt 0:00:01]} Bb4 {[%emt 0:00:02]} 6. Nxc6 {[%emt 0:00:02]} bxc6 {[%emt 0:00:02]} 7. Bd3 {[%emt 0:00:00]} O-O {[%emt 0:00:03]} 8. O-O {[%emt 0:00:02]} d5 {[%emt 0:00:03]} 9. exd5 {[%emt 0:00:00]} cxd5 {[%emt 0:00:01]} 10. h3 {[%emt 0:00:01]} c6 {[%emt 0:00:18]} 11. Qf3 {[%emt 0:00:02]} Bd6 {[%emt 0:00:06]} 12. Bf4 {[%emt 0:00:05] The position is equal.} Rb8 {[%emt 0:00:11]} 13. b3 {[%emt 0:00:02]} Rb4 {[%emt 0:00:31]} 14. Bxd6 {[%emt 0:00:02]} Qxd6 {[%emt 0:00:02]} 15. Qg3 {[%emt 0:00:06]} Qxg3 16. fxg3 {[%emt 0:00:01]} Be6 {[%emt 0:01:55]} 17. a3 {[%emt 0:00:01]} Rbb8 {[%emt 0:00:33]} 18. b4 {[%emt 0:00:01]} Nd7 {[%emt 0:00:10]} 19. Na4 {[%emt 0:16:09]} Rfc8 {[%emt 0:00:29]} 20. Rfb1 {[%emt 0:00:00]} Kf8 {[%emt 0:00:09]} 21. Kf2 {[%emt 0:00:00]} Ke7 {[%emt 0:00:04]} 22. Ke3 {[%emt 0:00:00]} Kd6 {[%emt 0:00:04]} 23. Kd4 {[%emt 0:00:00]} (23. g4 {simplifies} Rh8 24. Kf2 h5 25. gxh5 Rxh5 26. Nc5) 23... g6 {[%emt 0:03:39]} 24. Nc5 {[%emt 0:00:00]} Re8 {[%emt 0:00:40]} 25. Re1 {[%emt 0:00:00]} Nf8 {[%emt 0:02:42][%cal Oa7a5]} 26. g4 {[%emt 0:00:00]} (26. c4 $5) 26... Bd7 {[%emt 0:00:44]} ({Better is} 26... a5 $11) 27. Rf1 $14 {[%emt 0:00:00]} Ne6+ {[%emt 0:00:10]} 28. Nxe6 {[%emt 0:00:00]} (28. Kc3 $1 $14) 28... fxe6 $15 {[%emt 0:00:07]} 29. Rae1 {[%emt 0:00:00]} (29. Rf7 $11 {keeps the balance.}) 29... e5+ $17 {[%emt 0:00:08]} 30. Ke3 {[%emt 0:00:00]} Be6 {[%emt 0:00:51]} 31. c3 {[%emt 0:00:00] [#]} a5 $1 {[%emt 0:00:12][%mdl 512]} 32. Rb1 {[%emt 0:00:00]} (32. Bc2 Ra8) 32... axb4 {[%emt 0:00:04]} 33. axb4 {[%emt 0:00:00]} Ra8 {[%emt 0:00:07] Prevents Ba6.} 34. Ra1 {[%emt 0:00:02] Prevents Ra2} c5 {[%emt 0:00:36]} 35. bxc5+ {[%emt 0:01:03]} Kxc5 {[%emt 0:00:01]} 36. Rfb1 {[%emt 0:00:07]} d4+ {[%emt 0:00:40]} ({Black should try} 36... Bd7 $15) 37. cxd4+ $11 {[%emt 0:00:05]} exd4+ {[%emt 0:00:01]} 38. Kd2 {[%emt 0:00:03]} Bd5 {[%emt 0:00:09]} 39. Rb5+ {[%emt 0:00:11]} Kd6 {[%emt 0:00:06]} 40. Raa5 {[%emt 0:00:04]} Rxa5 {[%emt 0:00:13]} 41. Rxa5 {[%emt 0:00:02]} Bxg2 $15 {[%emt 0:00:02][%cal Oe8a8][%mdl 4096] Endgame. KRB-KRB} 42. Ra6+ {[%emt 0:00:02]} Ke5 {[%emt 0:00:32][%cal Oe8a8] And now ...Ra8! would win.} 43. Ra7 {[%emt 0:00:21]} Bxh3 {[%emt 0:01:07]} 44. Rxh7 {[%emt 0:00:00]} Bxg4 {[%emt 0:00:01] Threatens to win with ...Bf5.} 45. Bxg6 {[%emt 0:00:02]} Rb8 {[%emt 0:00:03]} 46. Bc2 {[%emt 0:00:03]} Rb2 {[%emt 0:00:05]} 47. Re7+ {[%emt 0:00:01]} Kd6 {[%emt 0:00:15]} 48. Rf7 {[%emt 0:00:08]} Be6 {[%emt 0:00:04]} 49. Rf4 {[%emt 0:00:04]} Ke5 {[%emt 0:00:03]} 50. Rf3 {[%emt 0:00:17]} Bd5 {[%emt 0:00:04]} 51. Rh3 {[%emt 0:00:00][%mdl 8192] [#] Now White is beyond hope.} (51. Rf5+ $11 Kd6 52. Kd3) 51... Be4 $1 {[%emt 0:00:03] Black mates.} 52. Rh5+ {[%emt 0:00:00]} Kd6 {[%emt 0:00:03]} 53. Rh6+ {[%emt 0:00:00]} Kc5 {[%emt 0:00:09]} 54. Rh5+ {[%emt 0:00:13]} Kc4 {[%emt 0:00:02] Weighted Error Value: White=0.23 (precise) /Black=0.09 (flawless) .  Loses game:     	White=1     	---        Mistake:       	White=2     	Black=2      Inaccurate:     	White=1     	Black=1      OK:         	White=16    	Black=14     Best:        	White=1     	---        Strong:       	---       	Black=1} 0-1

[Event "Grand Prix Romania 1st Stage 2024"]
[Site "Bucuresti"]
[Date "2024.03.23"]
[Round "1.31"]
[White "Stoyanov, Tsvetan"]
[Black "Olteanu, Gabriel-Luca"]
[Result "1-0"]
[ECO "C45"]
[WhiteElo "2465"]
[BlackElo "1711"]
[Annotator "TA"]
[PlyCount "43"]
[EventDate "2024.03.20"]
[EventCountry "ROU"]
[SourceTitle "playchess.com"]
[Source "ChessBase"]
[SourceQuality "1"]
[TimeControl "900+5"]

{[%evp 11,43,6,16,3,29,0,3,10,4,0,141,147,144,137,145,135,132,120,128,102,169,85,91,101,144,105,201,202,211,189,218,210,280,231]} 1. e4 {[%emt 0:00:03]} e5 {[%emt 0:00:01]} 2. Nf3 {[%emt 0:00:01]} Nc6 {[%emt 0:00:01]} 3. d4 {[%emt 0:00:03]} exd4 {[%emt 0:00:04]} 4. Nxd4 {[%emt 0:00:02]} Bc5 {[%emt 0:00:05]} 5. Nxc6 {[%emt 0:00:01]} Qf6 {[%emt 0:00:02]} 6. Qf3 {[%emt 0:00:02]} dxc6 {[%emt 0:01:31]} 7. Nc3 {[%emt 0:00:06]} Be6 {[%emt 0:00:23]} 8. Qg3 {[%emt 0:00:01][%cal Oc1e3]} (8. Be3 {simplifies} Qxf3 9. gxf3 Bxe3 10. fxe3 O-O-O 11. Bd3) 8... O-O-O {[%emt 0:02:39]} 9. Bd3 {[%emt 0:00:02] Hoping for e5. The position is equal.} Bd4 {[%emt 0:01:21]} 10. Bd2 $40 {[%emt 0:00:48][%mdl 128] White has some attack.} c5 {[%emt 0:03:03]} (10... h5 $11 {keeps the balance.}) 11. Nb5 $1 $16 {[%emt 0:03:06][%csl LRa7,LRc7]} Rd7 {[%emt 0:01:59]} 12. Nxd4 {[%emt 0:01:57]} cxd4 {[%emt 0:00:54]} 13. e5 {[%emt 0:02:47]} Qd8 {[%emt 0:00:11]} 14. Qxg7 {[%emt 0:00:03]} Ne7 {[%emt 0:00:06][%cal Bg8e7,Be7d5,Bd5b6][%mdl 32] Black is weak on the dark squares} 15. Qf6 {[%emt 0:00:04] White is much more active.} Qe8 {[%emt 0:00:28]} (15... h5 $16) 16. a3 {[%emt 0:00:45]} ({White should play} 16. O-O $18) 16... Nd5 {[%emt 0:00:14]} 17. Qh4 {[%emt 0:00:05][%csl LRd4,LRh7]} Qg8 {[%emt 0:02:16]} 18. Rg1 {[%emt 0:01:19]} h5 {[%emt 0:00:36]} (18... c5 $16 {was worth a try.}) 19. Qxd4 $18 {[%emt 0:00:19]} Nb6 {[%emt 0:00:23]} 20. Qf4 {[%emt 0:00:31]} c5 {[%emt 0:00:13]} 21. O-O-O {[%emt 0:00:17]} Qd8 {[%emt 0:00:11]} 22. Bf5 {[%emt 0:00:45] Weighted Error Value: White=0.16 (very precise) /Black=0.35.  Mistake:       	White=1     	Black=3      Inaccurate:     	White=1     	Black=2      OK:         	White=5     	Black=5      Best:        	White=2     	Black=1} 1-0